[Event "Israeli Team-ch 2023"]
[Site "Petah Tikva"]
[Date "2023.01.13"]
[Round "2.1"]
[White "Abergel, Thal"]
[Black "Nabaty, Tamir"]
[Result "0-1"]
[ECO "D27"]
[WhiteElo "2392"]
[BlackElo "2632"]
[Annotator "TA"]
[PlyCount "140"]
[EventDate "2023.01.13"]
[EventCountry "ISR"]
[SourceTitle "playchess.com"]
[Source "ChessBase"]
[SourceQuality "1"]
[TimeControl "40/5400+30:1800+30"]

{[%evp 21,140,-18,-18,-18,-8,-21,-14,-21,-6,-20,-25,-50,-52,-45,-64,-55,-54,-64,-34,-39,-34,-36,-54,-92,-92,-121,-112,-114,-106,-170,-189,-187,-186,-228,-127,-123,-124,-157,-149,-155,-116,-122,-122,-128,-120,-169,-168,-148,-89,-102,-87,-91,-22,-52,-14,-79,-82,-94,-77,-76,-14,-17,0,0,0,0,0,-1,-6,-156,-156,-154,-145,-142,-128,-132,-121,-164,-161,-175,-159,-146,-150,-166,-142,-128,-93,-271,-278,-404,-429,-408,-395,-425,-393,-564,-550,-564,-535,-593,-593,-1013,-588,-2093,-1956,-2229,-2118,-2032,-2070,-2583,-2337,-2154,-1879,-1479,-843,-12787,-12787,-12787,-12787,-29970,-6638]} 1. Nf3 {[%emt 0:00:03]} d5 {[%emt 0:00:23]} 2. e3 {[%emt 0:00:14]} Nf6 {[%emt 0:00:43]} 3. c4 {[%emt 0:00:14]} e6 {[%emt 0:00:49]} 4. Nc3 {[%emt 0:00:34]} dxc4 {[%emt 0:01:33]} 5. Bxc4 {[%emt 0:00:21]} a6 {[%emt 0:00:10]} 6. d4 {[%emt 0:03:31]} b5 {[%emt 0:00:09]} 7. Bd3 {[%emt 0:00:38]} Bb7 {[%emt 0:00:09]} 8. Qe2 {[%emt 0:02:33]} Nbd7 {[%emt 0:06:24]} 9. O-O {[%emt 0:04:04]} c5 {[%emt 0:00:18]} 10. dxc5 {[%emt 0:03:44]} Nxc5 {[%emt 0:13:20]} 11. Bc2 {[%emt 0:00:33]} Be7 {[%emt 0:02:02]} 12. a3 {[%emt 0:05:29] D27: Queen's Gambit Accepted: Classical main line: 7 e4!? and 7 a4.} O-O {[%emt 0:02:29]} 13. e4 {[%emt 0:01:16]} Qc7 {[%emt 0:00:55]} 14. Bg5 {[%emt 0:01:12] [#] The position is equal.} Rfd8 $146 {[%emt 0:02:28]} ({Predecessor:} 14... h6 15. Bh4 Nh5 16. Bxe7 Qxe7 17. Qe3 Nf6 18. Rfd1 Rfc8 19. Nd4 Ncd7 {½-½ Hellsten,J (2570)-Berg,E (2589) SWE-ch Gothenburg 2006 (2)}) 15. Rac1 {[%emt 0:08:03]} Rac8 {[%emt 0:01:49]} 16. b4 {[%emt 0:02:53]} Ncd7 {[%emt 0:00:38][%cal Bc5d7,Bd7b6,Bb6c4,Bc4b2][%mdl 32]} 17. Bb1 {[%emt 0:05:55][%cal Oc3d5] Black must now prevent Nd5!} Qb8 $1 {[%emt 0:03:37]} 18. Bh4 {[%emt 0:08:33]} Bd6 {[%emt 0:05:12]} 19. Rfd1 {[%emt 0:09:39]} h6 {[%emt 0:14:23]} (19... Nb6 $5) 20. Bg3 {[%emt 0:10:40]} Bxg3 {[%emt 0:04:13]} 21. hxg3 {[%emt 0:01:46]} Nb6 {[%emt 0:00:48]} (21... Rc7 $5 {[%cal Rd8c8]}) 22. e5 {[%emt 0:04:15]} Nfd7 {[%emt 0:04:15]} (22... Rxd1+ $6 23. Rxd1 Ng4 24. Ne4 Nxe5 25. Nd6 Nxf3+ 26. gxf3 $15) 23. Be4 {[%emt 0:16:30]} Bxe4 $1 {[%emt 0:02:01]} 24. Qxe4 {[%emt 0:03:15]} Nc4 {[%emt 0:02:32]} 25. a4 {[%emt 0:00:44]} (25. Na4 $17) 25... Nb2 $1 $19 {[%emt 0:04:52]} ({Stronger than} 25... Ncxe5 26. axb5 axb5 27. Qe2 $17) (25... Ndxe5 26. axb5 axb5 27. Nxe5 Nxe5 28. Rxd8+ Rxd8 29. Re1 $17) 26. Rd6 {[%emt 0:00:58]} Nxa4 {[%emt 0:01:54]} 27. Ne2 {[%emt 0:00:09]} Ndb6 {[%emt 0:01:34]} (27... Rxc1+ $19 28. Nxc1 Ndb6 29. Rxd8+ Qxd8) 28. Rxc8 $17 {[%emt 0:00:43]} Qxc8 {[%emt 0:01:31]} 29. Ned4 {[%emt 0:01:55]} Rxd6 {[%emt 0:09:51]} 30. exd6 {[%emt 0:00:02]} Qd7 {[%emt 0:00:07]} 31. Qc6 {[%emt 0:00:37] Prevents Nd5.} Qxc6 {[%emt 0:01:10]} 32. Nxc6 {[%emt 0:00:02][%mdl 4096] Endgame Nfe5 would be deadly. KNN-KNN} Nd7 {[%emt 0:00:10]} 33. Nfd4 {[%emt 0:01:52]} (33. Kf1 $17) 33... Kf8 $19 {[%emt 0:02:16]} 34. Nb3 {[%emt 0:00:27]} e5 {[%emt 0:05:20]} ({Black should play} 34... Nab6 {Hoping for ...Nc4.} 35. Kf1 Ke8) 35. Nba5 {[%emt 0:00:20]} Nc3 {[%emt 0:01:58]} 36. Kf1 {[%emt 0:00:27]} Ne4 {[%emt 0:01:17]} (36... h5 $17 37. Nb7 Ke8) 37. Nb7 $11 {[%emt 0:00:08]} f5 {[%emt 0:00:25]} 38. Ke1 {[%emt 0:00:14]} (38. f3 $1 $11 {keeps the balance.} Nxg3+ 39. Kf2) 38... Ke8 $17 {[%emt 0:01:55]} 39. f3 {[%emt 0:00:53]} Nxg3 {[%emt 0:00:52]} 40. Nc5 {[%emt 0:00:12]} f4 {[%emt 0:00:29]} (40... a5 $1 $17 {[%cal Ra5b4] Threatens to win with ...axb4.} 41. Nxd7 Kxd7 42. Nxe5+ Kxd6 43. bxa5 Nh5) 41. Nxa6 $11 {[%emt 0:30:34]} Nf5 {[%emt 0:30:23]} (41... e4 $5 {[%cal Re4f3]}) 42. Nc7+ {[%emt 0:00:28]} Kf7 {[%emt 0:00:06]} 43. Nd8+ $1 {[%emt 0:00:56]} Kf6 {[%emt 0:01:39]} 44. Nxb5 {[%emt 0:00:00]} Ne3 {[%emt 0:00:00]} 45. Nc7 {[%emt 0:00:00]} (45. Ke2 $11) 45... Nxg2+ $17 {[%emt 0:00:00]} 46. Kf2 {[%emt 0:00:00]} Ne3 {[%emt 0:00:00]} 47. Nb7 {[%emt 0:00:00]} Nc4 {[%emt 0:00:00]} 48. Nc5 {[%emt 0:00:00]} Ncb6 {[%emt 0:00:00]} 49. Ne4+ {[%emt 0:00:00]} Kf5 {[%emt 0:00:00]} 50. Ne8 {[%emt 0:00:00] [#]} Kg6 {[%emt 0:00:00]} 51. Nc7 {[%emt 0:00:00]} Kf7 {[%emt 0:00:00] Repels Ne6} 52. Kg2 {[%emt 0:00:00]} Nf6 {[%emt 0:00:00]} 53. Nc5 {[%emt 0:00:00]} g5 {[%emt 0:00:00][%cal Bg7g5,Bg5g4][%mdl 32]} 54. b5 $2 {[%emt 0:00:27] Now White is beyond hope.} (54. N7e6 $17) 54... h5 $19 {[%emt 0:00:11]} 55. Nd3 {[%emt 0:00:57] [#]} (55. N7a6 {was worth a try.} Nbd7 56. Kf2) 55... Nfd7 $1 {[%emt 0:01:14]} 56. Nf2 {[%emt 0:00:01]} Nc4 {[%emt 0:01:15]} 57. Ne4 {[%emt 0:00:21]} g4 {[%emt 0:00:01]} 58. Nd5 {[%emt 0:00:47]} (58. Na6 $142) 58... Ke6 {[%emt 0:00:29][%csl LRd5,LRd6]} 59. Nc7+ {[%emt 0:02:20]} Kf5 {[%emt 0:00:02]} 60. Ne8 {[%emt 0:00:25]} h4 {[%emt 0:02:28][%cal Bh5h4,Bh4h3][%mdl 32] Strongly threatening ...h3+.} 61. Ng7+ {[%emt 0:00:05]} Kg6 {[%emt 0:00:04]} 62. Ne6 {[%emt 0:00:11]} h3+ {[%emt 0:01:12][%mdl 64] Deflection} 63. Kh2 {[%emt 0:00:21]} gxf3 {[%emt 0:00:45] ...Kf5 is the strong threat.} 64. Nf2 {[%emt 0:03:41]} Nxd6 {[%emt 0:00:40] aiming for ...Kf5.} 65. Nxh3 {[%emt 0:00:02]} Kf5 {[%emt 0:00:30]} ({Not} 65... Nxb5 66. Nexf4+ Kf5 67. Kg3 $19) 66. Ng7+ {[%emt 0:00:16]} Ke4 {[%emt 0:00:24]} 67. Kg1 {[%emt 0:00:01]} Ke3 {[%emt 0:02:03]} 68. Nf2 {[%emt 0:00:24]} Ke2 {[%emt 0:01:01]} 69. Ne6 {[%emt 0:00:34]} Nxb5 {[%emt 0:00:21] ( -> ...Nc3)} 70. Ng5 {[%emt 0:00:12]} Nf6 {[%emt 0:00:23] Weighted Error Value: White=0.29 (precise) /Black=0.13 (very precise)} (70... Nc3 $142 71. Nf7 e4 72. Nh3 Nd5 73. Nfg5 Nc5 74. Kh2 f2 75. Nxf2 {[%mdl 64] Decoy} Kxf2 76. Nh3+ Kf1 77. Ng5 e3 78. Kh3 e2 79. Nf3 Nf6 80. Nh2+ Kf2 81. Ng4+ Nxg4 82. Kxg4 e1=Q 83. Kg5 Qe6 84. Kxf4 Kg2 85. Kg5 Kf3 86. Kh5 Kf4 87. Kh4 Qh6#) 0-1

[Event "Israeli Team-ch 2023"]
[Site "Petah Tikva"]
[Date "2023.01.13"]
[Round "2.2"]
[White "Roiz, Michael"]
[Black "Yaniv, Yuval"]
[Result "1-0"]
[ECO "D36"]
[WhiteElo "2577"]
[BlackElo "2366"]
[Annotator "TA"]
[PlyCount "73"]
[EventDate "2023.01.13"]
[EventCountry "ISR"]
[SourceTitle "playchess.com"]
[Source "ChessBase"]
[SourceQuality "1"]
[TimeControl "40/5400+30:1800+30"]

{[%evp 31,73,10,16,14,58,62,58,56,53,44,167,128,150,137,223,218,1033,1033,1030,995,1008,993,1085,1085,1050,1039,1023,897,847,827,812,797,754,712,669,677,766,562,1235,1209,1596,1071,1557,1045]} 1. d4 {[%emt 0:00:04]} d5 {[%emt 0:01:49]} 2. c4 {[%emt 0:00:41]} e6 {[%emt 0:00:07]} 3. Nc3 {[%emt 0:00:37]} Nf6 {[%emt 0:00:08]} 4. cxd5 {[%emt 0:03:36]} exd5 {[%emt 0:00:06]} 5. Bg5 {[%emt 0:00:06]} c6 {[%emt 0:00:08]} 6. e3 {[%emt 1:28:26]} Be7 {[%emt 0:02:45]} 7. Bd3 {[%emt 0:00:30]} Nbd7 {[%emt 1:28:57][%cal Bb8d7,Bd7f8,Bf8g6][%mdl 32]} 8. h3 {[%emt 0:00:00]} O-O {[%emt 0:00:00]} 9. Bf4 {[%emt 0:00:00]} Re8 {[%emt 0:00:00]} 10. Nf3 {[%emt 0:00:00]} Nf8 {[%emt 0:00:00]} 11. Qc2 {[%emt 0:00:00]} Ng6 {[%emt 0:00:00]} 12. Bh2 {[%emt 0:00:00]} Bd6 {[%emt 0:00:00]} 13. Bxd6 {[%emt 0:00:00]} Qxd6 {[%emt 0:00:00]} 14. O-O {[%emt 0:00:00]} Qe7 {[%emt 0:00:00]} 15. Rab1 {[%emt 0:00:00]} Ne4 {[%emt 0:00:00]} 16. b4 {[%emt 0:00:00]} a6 {[%emt 0:00:00]} 17. a4 {[%emt 0:00:00] D36: Queen's Gambit Declined: Exchange Variation: Main line (5 Bg5 c6 6 Qc2).} Nh4 {[%emt 0:00:00]} 18. Bxe4 {[%emt 0:00:00]} dxe4 {[%emt 0:00:00]} 19. Nxh4 {[%emt 0:00:00] White is slightly better.} Qxh4 {[%emt 0:00:00]} 20. Ne2 {[%emt 0:00:00] [#]} g5 $146 {[%emt 0:00:00]} ({Black should try} 20... Qe7 $14) ({Predecessor:} 20... Bd7 21. Rfd1 Rac8 22. Qc5 Qd8 23. Rdc1 b6 24. Qc2 Be6 25. Nf4 Bd5 26. Nxd5 Qxd5 27. Qe2 Ra8 28. Qc4 Rec8 {1-0 Palozi,P (2209)-De Haro,M (2099) Curitiba-ch II IRT 2010 (5)}) 21. Qc5 {[%emt 0:00:00]} Re6 {[%emt 0:00:00]} 22. Rfc1 {[%emt 0:00:00]} Rg6 {[%emt 0:00:00]} (22... Rh6 $16) 23. Qe7 $18 {[%emt 0:00:00][%cal Oe2f4] Nf4! is the strong threat.} Re6 $2 {[%emt 0:00:00] Black is weak on the dark squares} (23... Qh6 24. b5 (24. Qxe4 Re6 $16) 24... axb5) 24. Qd8+ {[%emt 0:00:00] White is clearly winning.} Kg7 {[%emt 0:00:00]} 25. Ng3 {[%emt 0:02:11] Nf5+ would kill now.} Rf6 {[%emt 0:00:00] Wards off Nf5+} 26. Rc5 {[%emt 0:01:07]} Bxh3 {[%emt 0:06:20]} 27. Qxa8 {[%emt 0:00:27]} Bxg2 {[%emt 0:00:09]} 28. Kxg2 {[%emt 0:02:14]} Qg4 {[%emt 0:00:02]} 29. Rc2 {[%emt 0:03:42]} (29. Qxb7 {leads to mate.} Qf3+ 30. Kh2 Qxf2+ 31. Kh3 Rh6+ 32. Kg4 Rh4+ 33. Kxg5 Qf6#) 29... h5 {[%emt 0:00:31]} 30. Qe8 {[%emt 0:00:27]} Re6 {[%emt 0:01:07]} 31. Qb8 {[%emt 0:00:23]} h4 {[%emt 0:00:12] [#]} 32. Kf1 $1 {[%emt 0:00:48][%cal Bg2f1,Bf1e1,Be1d2][%mdl 32]} Rf6 {[%emt 0:01:51] [#]} 33. Ke1 $1 {[%emt 0:00:12]} Qf3 {[%emt 0:00:22] [#]} (33... hxg3 34. Qxg3) 34. Kd2 $1 {[%emt 0:00:46]} Qxf2+ {[%emt 0:00:43]} (34... hxg3 35. Qxg3) 35. Ne2 {[%emt 0:00:03]} g4 {[%emt 0:00:08]} 36. Qe5 {[%emt 0:00:18]} Kf8 {[%emt 0:02:26]} 37. Qxe4 {[%emt 0:01:08] Black did not feel at home in the position after the opening.   Weighted Error Value: White=0.07 (flawless) /Black=0.50} 1-0

[Event "Israeli Team-ch 2023"]
[Site "Petah Tikva"]
[Date "2023.01.13"]
[Round "2.3"]
[White "Poleg, Matan"]
[Black "Mikhalevski, Victor"]
[Result "1/2-1/2"]
[ECO "B87"]
[WhiteElo "2272"]
[BlackElo "2516"]
[Annotator "TA"]
[PlyCount "93"]
[EventDate "2023.01.13"]
[EventCountry "ISR"]
[SourceTitle "playchess.com"]
[Source "ChessBase"]
[SourceQuality "1"]
[TimeControl "40/5400+30:1800+30"]

{[%evp 14,93,12,0,150,0,0,-6,22,11,45,33,68,0,29,0,-1,-8,20,27,18,0,0,0,0,0,0,-42,-41,-36,-64,-79,-70,-101,0,-13,0,0,13,14,226,224,363,125,125,125,121,123,125,125,120,120,117,115,118,113,118,123,178,167,647,635,620,588,600,97,124,0,578,564,1352,41,41,41,41,39,40,8,8,8,21,0]} 1. e4 {[%emt 0:00:05]} c5 {[%emt 0:00:11]} 2. Nf3 {[%emt 0:00:15]} d6 {[%emt 0:00:07]} 3. d4 {[%emt 0:00:21]} cxd4 {[%emt 0:00:07]} 4. Nxd4 {[%emt 0:00:10]} Nf6 {[%emt 0:00:06]} 5. Nc3 {[%emt 0:00:37]} a6 {[%emt 0:00:05]} 6. Bc4 {[%emt 0:03:15]} b5 {[%emt 0:02:58]} 7. Bb3 {[%emt 0:01:26]} e6 {[%emt 0:01:27]} 8. Be3 {[%emt 0:00:14]} Nbd7 {[%emt 0:02:08] B87: Sicilian Scheveningen/Najdorf: 6 Bc4, with early ...b5.} ({Black should try} 8... Be7 $11) 9. f3 {[%emt 0:01:47] White is more active.} (9. Bxe6 $1 $16 {[%cal Oe1g1] Black must now prevent 0-0!} Bb7 10. Bb3) 9... Nc5 $11 {[%emt 0:00:42]} 10. Qd2 {[%emt 0:04:33]} Qc7 {[%emt 0:07:18]} 11. a3 {[%emt 0:03:30] [#]} Nxb3 $146 {[%emt 0:06:53]} ({Predecessor:} 11... Be7 12. g4 Rb8 13. Ba2 Nfd7 14. Bg5 Bxg5 15. Qxg5 O-O 16. O-O-O b4 17. axb4 Rxb4 {0-1 Grover,S (2505)-Sethuraman,S (2625) Dubai op 22nd 2022 (7)}) 12. cxb3 {[%emt 0:00:34]} Qb7 {[%emt 0:01:00]} 13. O-O-O {[%emt 0:03:20]} (13. b4 $14) 13... Be7 {[%emt 0:01:29]} 14. Kb1 {[%emt 0:00:13]} O-O {[%emt 0:00:26]} 15. g4 {[%emt 0:00:33][%cal Bg2g4,Bg4g5][%mdl 32]} Rd8 {[%emt 0:24:37]} (15... Bd7 $5) 16. g5 {[%emt 0:05:12]} Nh5 {[%emt 0:03:56]} 17. Nde2 {[%emt 0:03:56]} b4 {[%emt 0:03:16]} 18. axb4 {[%emt 0:00:40]} Rb8 {[%emt 0:00:20]} 19. Ng3 {[%emt 0:15:18]} g6 {[%emt 0:01:21]} (19... Nxg3 $2 20. hxg3 Bd7 21. Qh2 $18) 20. f4 {[%emt 0:00:42]} Qxb4 {[%emt 0:02:32]} 21. Nxh5 {[%emt 0:04:08]} gxh5 {[%emt 0:00:07]} 22. Rhf1 {[%emt 0:00:25]} Qxb3 {[%emt 0:21:31]} 23. f5 {[%emt 0:04:05]} exf5 {[%emt 0:00:41]} ({Better is} 23... Bd7 $17 {...Rb4 is the strong threat.} 24. Qc2 Qa3) 24. exf5 {[%emt 0:07:41]} (24. Nd5 $5 {[%cal Rd5e7]} Rb7 25. exf5 $11) 24... d5 {[%emt 0:07:46]} 25. Bd4 $1 {[%emt 0:02:53][%cal Og5g6]} Ba3 {[%emt 0:09:23][%cal Ra3b2]} (25... Bb4 $5 {[%cal Rb4c3]}) 26. Na2 {[%emt 0:00:35] Dancing on a razor blade.} a5 $2 {[%emt 0:01:27]} 27. g6 $1 $18 {[%emt 0:01:34]} Ba6 {[%emt 0:00:20]} (27... fxg6 $2 28. fxg6 $18) (27... Bxf5+ {was worth a try.} 28. Rxf5 fxg6) 28. Nc1 $2 {[%emt 0:00:27]} (28. Rg1 $18 {White wants to mate with Qh6.} hxg6 29. Rg3 Qxb2+ 30. Bxb2 Rxb2+ 31. Qxb2 Bxb2 32. Kxb2) 28... Qxb2+ $16 {[%emt 0:01:25]} 29. Bxb2 {[%emt 0:00:23]} Rxb2+ {[%emt 0:00:03]} 30. Qxb2 {[%emt 0:00:20]} Bxb2 {[%emt 0:00:04] This pair of bishops is nice.} 31. gxf7+ {[%emt 0:00:42]} Kxf7 {[%emt 0:00:04]} 32. Kxb2 {[%emt 0:00:25]} Bxf1 {[%emt 0:00:03]} 33. Rxf1 {[%emt 0:00:08][%mdl 4096] Endgame KRN-KR} Kf6 {[%emt 0:02:09]} 34. Nb3 {[%emt 0:00:43]} Re8 {[%emt 0:00:39]} 35. Rf2 {[%emt 0:03:18]} Re3 {[%emt 0:00:29]} (35... Re5 $16 {was called for.} 36. Nxa5 Rxf5) 36. Nc5 $18 {[%emt 0:02:01]} a4 $2 {[%emt 0:00:37]} (36... Re7 37. Kc3 Ra7) 37. Nd7+ $1 {[%emt 0:00:39]} Kf7 {[%emt 0:00:07]} 38. f6 $1 {[%emt 0:00:20]} d4 {[%emt 0:00:34]} 39. Rg2 $2 {[%emt 0:00:09]} (39. Rf5 $18 {is the precise move to win.}) 39... Ke6 $16 {[%emt 0:00:24] [#] Wards off Ne5} 40. Rf2 $2 {[%emt 0:04:47][%mdl 8192]} Kf7 $1 $18 {[%emt 0:00:09] [#]} (40... Kxd7 $2 41. f7 Rb3+ 42. Kc1 $18) 41. Rf5 $1 {[%emt 0:30:28]} Re8 {[%emt 0:01:55][%cal Oa4a3]} 42. Ne5+ $2 {[%emt 0:00:00]} (42. Rxh5 $18 Kg6 43. Rh4 Re2+ 44. Ka3) 42... Ke6 $14 {[%emt 0:00:12]} 43. Rxh5 {[%emt 0:00:00] Threatens to win with f7.} Kxf6 {[%emt 0:00:29]} 44. Ng4+ {[%emt 0:00:00]} Kg6 {[%emt 0:01:29]} 45. Rd5 {[%emt 0:00:00]} Re2+ {[%emt 0:01:22]} 46. Ka3 {[%emt 0:00:00]} h5 {[%emt 0:01:12]} 47. Rxd4 {[%emt 0:00:00] An exciting game.   Weighted Error Value: White=0.50/Black=0.42} 1/2-1/2

[Event "Israeli Team-ch 2023"]
[Site "Petah Tikva"]
[Date "2023.01.13"]
[Round "2.4"]
[White "Postny, Evgeny"]
[Black "Tifferet, Shaked"]
[Result "1-0"]
[ECO "D27"]
[WhiteElo "2556"]
[BlackElo "2226"]
[Annotator "TA"]
[PlyCount "93"]
[EventDate "2023.01.13"]
[EventCountry "ISR"]
[SourceTitle "playchess.com"]
[Source "ChessBase"]
[SourceQuality "1"]
[TimeControl "40/5400+30:1800+30"]

{[%evp 11,93,15,18,14,16,14,16,18,6,11,19,0,51,66,47,22,39,-2,-10,-8,18,23,22,6,0,0,112,2,12,9,0,-33,-18,-52,-15,-51,-40,-89,0,-10,0,0,10,0,32,0,92,89,131,127,160,168,234,212,338,305,333,325,311,321,350,341,393,317,1208,1199,1016,1237,1164,1096,1249,1240,1254,1144,1191,1194,29987,29988,29989,29990,29995,29996,29997,1408]} 1. d4 {[%emt 0:00:04]} d5 {[%emt 0:00:11]} 2. c4 {[%emt 0:00:11]} dxc4 {[%emt 0:00:10]} 3. Nf3 {[%emt 0:00:46]} Nf6 {[%emt 0:00:09]} 4. e3 {[%emt 0:01:30]} e6 {[%emt 0:00:18]} 5. Bxc4 {[%emt 0:00:07]} c5 {[%emt 0:00:05]} 6. O-O {[%emt 0:00:11]} a6 {[%emt 0:00:26]} 7. Re1 {[%emt 0:03:16] D27: Queen's Gambit Accepted: Classical main line: 7 e4!? and 7 a4.} b5 {[%emt 0:05:00]} 8. Bf1 {[%emt 0:00:27]} Bb7 {[%emt 0:01:52]} 9. a4 {[%emt 0:01:10] The position is equal.} b4 {[%emt 0:03:06]} 10. Nbd2 {[%emt 0:02:30]} Nc6 {[%emt 0:12:32]} 11. Nc4 {[%emt 0:04:19] [#]} Rc8 $146 {[%emt 0:06:17]} (11... Na5 $11) ({Predecessor:} 11... cxd4 12. exd4 Be7 13. b3 O-O 14. Bb2 Nd5 15. Nfe5 Nxe5 16. dxe5 Rc8 17. Qh5 g6 {0-1 Matveeva,O (2111)-Manukian,A (2196) Speed Chess Q2 blitz 2022 (9)}) 12. a5 $14 {[%emt 0:11:34]} Be7 {[%emt 0:02:03]} 13. dxc5 {[%emt 0:04:56]} Bxc5 {[%emt 0:05:33]} 14. b3 {[%emt 0:01:39]} O-O {[%emt 0:12:47]} 15. Bb2 {[%emt 0:01:09]} Qxd1 {[%emt 0:00:23]} 16. Rexd1 {[%emt 0:00:10]} Rfd8 {[%emt 0:00:09]} 17. Rdc1 {[%emt 0:02:19]} Ne4 {[%emt 0:06:37]} 18. Ne1 {[%emt 0:09:08]} Ne7 {[%emt 0:07:51] [#]} (18... Rc7 $11 {keeps the balance.}) 19. Bd3 {[%emt 0:08:42]} (19. Nd3 $1 $16) 19... Nc3 {[%emt 0:01:23]} 20. Bxc3 {[%emt 0:00:51]} bxc3 {[%emt 0:00:02]} 21. Be2 {[%emt 0:02:27]} Nd5 $1 {[%emt 0:01:53]} 22. Bf3 {[%emt 0:01:27]} Rc7 {[%emt 0:04:25]} 23. Kf1 {[%emt 0:13:17][%cal Oc4b6]} Bc6 {[%emt 0:03:22]} 24. e4 {[%emt 0:08:30]} (24. Be2 $15 {deserves consideration.}) 24... Nb4 {[%emt 0:05:38]} (24... Nf6 $17 25. Rxc3 Nxe4) 25. Rxc3 $11 {[%emt 0:01:28]} Bb5 {[%emt 0:03:08] This pair of bishops is nice.} 26. Be2 {[%emt 0:02:50]} Rcd7 {[%emt 0:02:54] Hoping for ...Bd4.} 27. Nf3 {[%emt 0:02:41]} Nc6 {[%emt 0:00:58][%cal Og7g5]} 28. Rc2 {[%emt 0:06:59] And now Ne3 would win.} (28. Rcc1 $5 {[%cal Rc4b6]}) 28... g5 {[%emt 0:06:39]} 29. Ne3 $16 {[%emt 0:02:32] White leaves nothing to chance now.} Bxe2+ {[%emt 0:03:35]} 30. Kxe2 {[%emt 0:00:22]} Bxe3 {[%emt 0:05:10]} 31. Rxc6 {[%emt 0:01:13]} Bf4 {[%emt 0:00:02]} (31... Ba7 {keeps fighting.}) 32. g3 $18 {[%emt 0:02:36][%cal Bg2g3,Bg3f4][%mdl 32]} (32. Rxa6 g4 $11) 32... g4 {[%emt 0:00:05]} (32... Bb8 $142 33. h3 (33. Nxg5 Rd2+ 34. Kf1 Be5 $18) (33. Rxa6 g4 $16) 33... h5 34. Rxa6 (34. Nxg5 Rd2+ 35. Kf1 Ba7 $11) 34... g4) 33. gxf4 {[%emt 0:00:18]} gxf3+ {[%emt 0:00:02]} 34. Kxf3 {[%emt 0:00:03][%mdl 4096] Endgame KRR-KRR} Rd3+ {[%emt 0:00:23]} 35. Kg2 {[%emt 0:02:32]} Rxb3 {[%emt 0:00:40]} 36. Rxa6 {[%emt 0:01:01]} Rd2 {[%emt 0:00:40]} 37. Rb6 {[%emt 0:00:13]} Rc3 {[%emt 0:01:30]} (37... Rxb6 38. axb6 Rb2 39. Ra8+ Kg7) 38. a6 {[%emt 0:00:38] [#] White threatens a7 and mate.} Rcc2 {[%emt 0:00:02]} 39. a7 {[%emt 0:01:28]} Rxf2+ {[%emt 0:00:03]} 40. Kg3 {[%emt 0:00:03]} Rg2+ {[%emt 0:01:45]} 41. Kf3 {[%emt 0:30:06]} Kg7 {[%emt 0:23:39]} 42. Rb3 {[%emt 0:00:00]} ({Stronger than} 42. a8=R Rgf2+ 43. Kg3 Rg2+ 44. Kh4 Rxh2+ 45. Kg3 Rhg2+ 46. Kf3 Rgf2+ 47. Kg4 Rg2+ 48. Kh5 Rh2+ 49. Kg4 Rhg2+ 50. Kh5 Rh2+ 51. Kg4 Rhg2+ $11) 42... Rgf2+ {[%emt 0:05:55]} 43. Ke3 {[%emt 0:00:00] Rg1+ would kill now.} Rxh2 {[%emt 0:01:37]} 44. a8=Q {[%emt 0:00:00] White mates.} ({And not} 44. a8=R Rh3+ 45. Kd4 Rxb3 $11) 44... Rh3+ {[%emt 0:00:20]} 45. Kd4 {[%emt 0:00:00]} Rxb3 {[%emt 0:01:06]} 46. Rg1+ {[%emt 0:00:00]} Kh6 {[%emt 0:00:19]} 47. Qf8+ {[%emt 0:00:00] Weighted Error Value: White=0.18 (very precise) /Black=0.45} 1-0